Cogmind - Beta 14 @@@ ROGUE MODE // 2025.04.28 @ 20:36:31 Player: BatSpy Result: Destroyed by Y-45 Defender with Beam Rifle Performance ------------- Evolutions (2) 1000 Regions Visited (4) 800 Robots Destroyed (20) 100 Value Destroyed (599) 599 Prototype IDs (3) 60 Alien Tech Used (0) 0 Bonus (0) 0 TOTAL SCORE: 2559 Bonus ------- None Cogmind --------- Core Integrity 0/550 Matter 280/300 Energy 220/220 System Corruption 0% Temperature Cool (9) Movement Walking (120) Location -8/Storage Parts ------- > --- POWER (2) -------- Light Nuclear Core Light Nuclear Core > --- PROPULSION (4) --- Aluminum Leg Aluminum Leg Aluminum Leg Improved Aluminum Leg > --- UTILITY (3) ------ Improved Heat Sink Experimental Targeting Computer Improved Light Armor Plating > --- WEAPON (2) ------- Enhanced Autogun Enhanced Autogun > --- INVENTORY (5) ---- Improved Heat Sink Hardened Medium Armor Plating Improved Assault Rifle Minigun Improved Datajack Peak State ------------ > --- POWER ------------ Light Nuclear Core Light Nuclear Core > --- PROPULSION ------- Aluminum Leg Aluminum Leg Aluminum Leg Improved Aluminum Leg > --- UTILITY ---------- Improved Heat Sink Experimental Targeting Computer Improved Light Armor Plating > --- WEAPON ----------- Enhanced Autogun Enhanced Autogun > --- INVENTORY -------- Improved Heat Sink Hardened Medium Armor Plating Improved Assault Rifle Minigun Improved Datajack [Rating: 32] Favorites ----------- Power Light Nuclear Core Engine Ion Engine Power Core Light Nuclear Core Propulsion Aluminum Leg Treads Light Treads Leg Aluminum Leg Wheel Compact Wheel Hover Unit Hover Unit Flight Unit Flight Unit Utility ECM Suite Device ECM Suite Storage Small Storage Unit Processor Visual Processing Unit Protection Improved Light Armor Plating Weapon Minigun Energy Gun Small Laser Energy Cannon Advanced Beam Cannon Ballistic Gun Minigun Ballistic Cannon Improved Light Cannon Special Weapon Mining Laser Build | -11 -10 -9 -8 -8 ------- Run | Yrd Mat Mat Mat Sto Slots Evolved 4 | . . 2 2 . Power 1 | . . . 1 . Propulsion 2 | . . 2 . . Utility 1 | . . . 1 . Weapon . | . . . . . Parts Attached 52 | 5 11 6 21 9 Power 8 | 1 2 . 4 1 Engine 5 | 1 2 . 2 . Core 3 | . . . 2 1 Reactor . | . . . . . Propulsion 17 | 2 2 4 6 3 Treads 3 | . 1 2 . . Leg 9 | 2 . . 4 3 Wheel 1 | . . . 1 . Hover 3 | . 1 1 1 . Flight 1 | . . 1 . . Utility 11 | . 4 . 4 3 Device 6 | . 3 . 3 . Storage 1 | . . . 1 . Processor 2 | . 1 . . 1 Hackware . | . . . . . Protection 2 | . . . . 2 Artifact . | . . . . . Weapon 16 | 2 3 2 7 2 Energy Gun 6 | 2 . 1 3 . Energy Cannon 2 | . . . 2 . Ballistic Gun 4 | . . . 2 2 Ballistic Cannon 1 | . . 1 . . Launcher . | . . . . . Special Weapon 3 | . 3 . . . Impact Weapon . | . . . . . Slashing Weapon . | . . . . . Piercing Weapon . | . . . . . Special Melee Weapon . | . . . . . Unidentified Prototypes 3 | . . . 1 2 Parts Lost 20 | . 6 2 12 . Power 4 | . 1 . 3 . Propulsion 8 | . 2 2 4 . Utility 2 | . . . 2 . Weapon 6 | . 3 . 3 . Highest Loss Streak 5 | . 4 2 5 . To Critical Strikes . | . . . . . Average Slot Usage (%) 74 | . 78 76 50 92 Engine 5 | . 12 10 1 . Core 4 | . . . 3 12 Treads 5 | . 6 18 2 . Leg 17 | . 14 . 11 35 Hover 2 | . 3 9 1 . Flight 2 | . . 11 1 . Device 10 | . 11 11 8 10 Storage 2 | . . . 7 2 Processor 2 | . 7 . . . Protection 4 | . . . . 13 Energy Gun 8 | . 21 9 4 . Ballistic Gun 6 | . . . 4 18 Peak Build Rating 32 | 5 8 10 19 32 Average Rating 12 | 3 6 8 10 24 On Entrance 5 | . 5 2 3 19 Naked Turns . | . . . . . Heaviest Build 28 | 8 10 14 27 28 Greatest Support 43 | 20 20 40 43 43 Greatest Overweight (x) 4 | . 2 4 4 . Average Overweight (x) . | . . . . . Largest Inventory Capacity 8 | 5 5 5 8 8 Average Capacity 5 | 5 5 5 7 5 Most Carried 5 | 5 5 4 5 5 Average Carried 2 | 3 4 1 1 4 Final Capacity 8 | 5 5 5 8 5 Final Carried 5 | 3 5 2 2 5 Class Distribution -------------------- 64% | Mutant 35% | Scavenger-Mutant Dominant Class ---------------- Mutant | -10/Materials Mutant | -9/Materials Mutant | -8/Materials Scavenger-Mutant | -8/Storage Resources | -11 -10 -9 -8 -8 ----------- Run | Yrd Mat Mat Mat Sto Matter Collected 794 | 250 50 . 79 415 Remotely . | . . . . . Salvage Created 820 | 135 166 . 276 243 Parts 37 | 9 8 . 11 9 Haulers Intercepted 1 | . . . . 1 Recyclers Shooed . | . . . . . Parts Field Recycled . | . . . . . Retrieved Matter . | . . . . . Parts Self-Destructed . | . . . . . Prevented . | . . . . . Kills | -11 -10 -9 -8 -8 ------- Run | Yrd Mat Mat Mat Sto Combat Hostiles Destroyed 14 | . 5 . 7 2 Guns 11 | . 5 . 4 2 Cannons 3 | . . . 3 . Classes Destroyed 7 | 2 3 . . 2 Tunneler 2 | 2 . . . . Hauler 1 | . . . . 1 Recycler 2 | 1 . . . 1 Watcher 1 | . 1 . . . Swarmer 3 | . 3 . . . Grunt 10 | . 2 . 7 1 Hunter 1 | . . . . 1 Best Kill Streak 4 | 2 4 . 3 3 Combat Bots Only 3 | . 3 . 3 1 Max Kills in Single Turn 1 | 1 1 . 1 1 Gunslinging . | . . . . . Exploded . | . . . . . Melee . | . . . . . Uniques/NPCs Destroyed . | . . . . . Combat | -11 -10 -9 -8 -8 -------- Run | Yrd Mat Mat Mat Sto Hostile Shots Fired 280 | . 102 25 126 27 Missed 75 | . 21 13 36 5 Damage Taken 2907 | . 846 141 1568 352 Core 816 | . 249 12 514 41 Absorbed by Shields . | . . . . . Regen/Repaired (Parts) 78 | . . . . 78 Core Remaining (%) 65 | 100 . 97 . . Volleys Fired 83 | 7 31 . 26 19 Largest 2 | 2 2 . 2 2 Hottest 136 | 90 90 . 136 50 Shots Fired 153 | 14 54 . 47 38 Gun 132 | 14 54 . 26 38 Cannon 21 | . . . 21 . Launcher . | . . . . . Special . | . . . . . Kinetic 43 | . . . 5 38 Thermal 110 | 14 54 . 42 . Explosive . | . . . . . Electromagnetic . | . . . . . Robot Hit Streak 9 | 4 7 . 6 9 Robot Miss Streak 4 | 4 3 . 4 3 Penetration Max . | . . . . . Secondary Targets 4 | . 3 . 1 . Max Gunslinging Chain 1 | . 1 . 1 . Shots Hit Robots 99 | 8 31 . 38 22 Core Hits 55 | 4 9 . 32 10 Critical Kills 1 | . . . . 1 Critical Parts Destroyed . | . . . . . Critical Strikes 3 | 1 1 . . 1 Burn 2 | 1 1 . . . Destroy 1 | . . . . 1 Melee Attacks . | . . . . . Impact . | . . . . . Slashing . | . . . . . Piercing . | . . . . . Sneak Attacks . | . . . . . Combat Hostiles . | . . . . . Follow-up Attacks . | . . . . . Damage Inflicted 1504 | 93 364 . 674 373 Guns 1168 | 93 364 . 344 367 Cannons 330 | . . . 330 . Explosions . | . . . . . Melee . | . . . . . Ramming 6 | . . . . 6 Kinetic 416 | . . . 49 367 Thermal 1082 | 93 364 . 625 . Explosive . | . . . . . Electromagnetic . | . . . . . Impact . | . . . . . Slashing . | . . . . . Piercing . | . . . . . Highest Corruption . | . . . . . Average Corruption . | . . . . . Corruption Purged . | . . . . . Corruption Blocked . | . . . . . Overload Shots . | . . . . . Overflow Damage . | . . . . . Projectiles . | . . . . . Explosions . | . . . . . Melee . | . . . . . Knockbacks . | . . . . . Impact . | . . . . . Kinetic . | . . . . . Secondary . | . . . . . Self-Inflicted Damage . | . . . . . Shots . | . . . . . Rammed . | . . . . . Targets Rammed 1 | . . . . 1 Kicked 1 | . . . . 1 Crushed . | . . . . . Highest Temperature 412 | 120 412 . 327 42 Average Temperature 135 | 47 183 . 118 9 Received Heat Transfer 1488 | . 330 78 936 144 Effects 2 | . 1 . 1 . Energy Bleed 1 | . . . 1 . Short Circuit 1 | . 1 . . . Siege Activations . | . . . . . Robots Corrupted . | . . . . . Combat Hostiles . | . . . . . Parts Fried . | . . . . . Impact Corruptions . | . . . . . Robots Melted . | . . . . . Combat Hostiles . | . . . . . Parts Melted 3 | . 3 . . . Heat Transferred 2319 | 310 1018 . 991 . Parts Sabotaged . | . . . . . Parts Stolen . | . . . . . Parts Stripped . | . . . . . Power Chain Reactions . | . . . . . Alert | -11 -10 -9 -8 -8 ------- Run | Yrd Mat Mat Mat Sto Peak Influence 119 | 15 107 19 90 119 Initial 37 | . 9 3 . 37 Average 40 | 3 45 4 44 59 Maximum Alert Level . | . . . . . Low Security (%) 100 | 100 100 100 100 100 Level 1 . | . . . . . Level 2 . | . . . . . Level 3 . | . . . . . Level 4 . | . . . . . Level 5 . | . . . . . High Security . | . . . . . Max Security . | . . . . . Squads Dispatched 3 | . . 2 1 . Investigation 1 | . . 1 . . Extermination . | . . . . . Reinforcement 2 | . . 1 1 . Assault . | . . . . . Garrison . | . . . . . Intercept . | . . . . . Searches Triggered . | . . . . . Construction Impeded . | . . . . . Haulers Reinforced . | . . . . . Active Scanning Responses . | . . . . . Cargo Convoy Interrupts . | . . . . . Stealth | -11 -10 -9 -8 -8 --------- Run | Yrd Mat Mat Mat Sto Distress Signals 2 | . 1 . 1 . Communications Jammed . | . . . . . Distress Signals . | . . . . . Times Spotted 45 | . 11 13 13 8 Peak Tracking Total 6 | . 4 6 3 2 Tactical Retreats 2 | . . 2 . . Traps | -11 -10 -9 -8 -8 ------- Run | Yrd Mat Mat Mat Sto Traps Triggered 5 | . 5 . . . Indirectly . | . . . . . Trap Hack Attempts . | . . . . . Triggered . | . . . . . Disarmed . | . . . . . Reprogrammed . | . . . . . Reused . | . . . . . Traps Extracted . | . . . . . Installed . | . . . . . Triggered . | . . . . . Machines | -11 -10 -9 -8 -8 ---------- Run | Yrd Mat Mat Mat Sto Machines Disabled 1 | . . . . 1 Max in Single Turn 1 | . . . . 1 Machines Repaired . | . . . . . Machines Dismantled . | . . . . . Machines Sabotaged . | . . . . . Overloaded Fab Kills . | . . . . . Hacking | -11 -10 -9 -8 -8 --------- Run | Yrd Mat Mat Mat Sto Machines Accessed 13 | . 3 1 3 6 Terminals 10 | . 3 1 3 3 Fabricators . | . . . . . Repair Stations 2 | . . . . 2 Recycling Units 1 | . . . . 1 Scanalyzers . | . . . . . Garrison Access . | . . . . . Total Hacks 32 | . 8 7 7 10 Successful 21 | . 6 5 3 7 Failed 10 | . 1 2 4 3 Catastrophic 2 | . . 1 . 1 Database Lockouts 1 | . 1 . . . Manual 2 | . 1 . 1 . Terminals 26 | . 8 7 7 4 Fabricators . | . . . . . Repair Stations 5 | . . . . 5 Recycling Units 1 | . . . . 1 Scanalyzers . | . . . . . Garrison Access . | . . . . . Terminal Hacks 16 | . 6 5 2 3 Record 8 | . 2 4 1 1 Alert Level 2 | . . 1 . 1 Unreport Threat 2 | . 1 . . 1 Dispatch Records 1 | . 1 . . . Surveillance Status 1 | . 1 . . . Zone Layout 2 | . 1 . 1 . Fabricator Hacks . | . . . . . Repair Station Hacks 3 | . . . . 3 Scan Component 2 | . . . . 2 Repair 1 | . . . . 1 Recycling Unit Hacks 1 | . . . . 1 Report Inventory 1 | . . . . 1 Scanalyzer . | . . . . . Garrison Access Hacks . | . . . . . Unauthorized Hacks 1 | . . . 1 . Terminals 1 | . . . 1 . Botnet 1 | . . . 1 . Fabricators . | . . . . . Repair Stations . | . . . . . Recycling Units . | . . . . . Scanalyzers . | . . . . . Garrison Access . | . . . . . Data Cores Recovered . | . . . . . Used . | . . . . . Hacking Detections 7 | . . 1 2 4 Full Trace Events 1 | . . 1 . . Feedback Events . | . . . . . Feedback Blocked . | . . . . . Robot Schematics Acquired . | . . . . . Robots Built . | . . . . . Authchips . | . . . . . Time . | . . . . . Total Robot Build Rating . | . . . . . Part Schematics Acquired . | . . . . . Parts Built . | . . . . . Authchips . | . . . . . Time . | . . . . . Total Part Build Rating . | . . . . . Parts Repaired 1 | . . . . 1 Time 44 | . . . . 44 Parts Recycled . | . . . . . Recycled Matter . | . . . . . Retrieved Matter . | . . . . . Retrieved Components . | . . . . . Parts Scanalyzed . | . . . . . Part Schematics Acquired . | . . . . . Parts Damaged . | . . . . . Bothacking | -11 -10 -9 -8 -8 ------------ Run | Yrd Mat Mat Mat Sto Used RIF Installer . | . . . . . Robots Hacked . | . . . . . Non-combat . | . . . . . Combat . | . . . . . Robot Hacks Applied . | . . . . . Relay Couplers Released . | . . . . . Fabnet Peak Effective % . | . . . . . Robots Rewired . | . . . . . Allies Hacked . | . . . . . Hacks Repelled . | . . . . . Allies | -11 -10 -9 -8 -8 -------- Run | Yrd Mat Mat Mat Sto Total Allies . | . . . . . Largest Group . | . . . . . Highest-Rated Group . | . . . . . Highest-Rated Ally . | . . . . . Total Orders . | . . . . . Ally Attacks . | . . . . . Total Damage . | . . . . . Kills . | . . . . . Allies Corrupted . | . . . . . Allies Melted . | . . . . . Intel | -11 -10 -9 -8 -8 ------- Run | Yrd Mat Mat Mat Sto Robot Analysis Total . | . . . . . Derelict Logs Recovered . | . . . . . Drone Launches . | . . . . . Drone Recoveries . | . . . . . Exploration | -11 -10 -9 -8 -8 ------------- Run | Yrd Mat Mat Mat Sto Turns Passed 1358 | 92 343 177 371 375 Spaces Moved 813 | 60 177 110 229 237 Core 47 | 17 13 1 16 . Treads 81 | . 11 70 . . Legs 473 | 43 100 . 93 237 Wheels 9 | . . . 9 . Hover 81 | . 53 . 28 . Flight 122 | . . 39 83 . Fastest Speed 50 | 50 50 60 60 120 Average Speed 121 | 100 126 152 108 120 Slowest Speed 250 | 120 160 250 250 120 Overloaded Moves . | . . . . . Propulsion Burnouts . | . . . . . Robots Hopped . | . . . . . Cave-ins Triggered . | . . . . . Exploration Rate (%) 21 | 5 39 17 19 29 Regions Visited 4 Branch Regions 1 Pre-discovered Areas . | . . . . . Known Exits Taken . | . . . . . Unknown Exits Taken 4 | 1 1 1 1 . Scrap Searched . | . . . . . Spaces Dug . | . . . . . Terrain Destroyed . | . . . . . Melee . | . . . . . Projectile . | . . . . . AOE . | . . . . . Terrain Rammed . | . . . . . Walls Destroyed . | . . . . . Machines Disabled . | . . . . . Actions | -11 -10 -9 -8 -8 --------- Run | Yrd Mat Mat Mat Sto Total 1040 | 77 239 120 305 299 Wait 41 | . 12 . 11 18 Move 809 | 59 176 109 228 237 Hop . | . . . . . Pick Up 43 | 6 8 2 19 8 Fast Attach 10 | 2 6 . . 2 Attach 33 | 3 5 6 19 . Detach 1 | . . 1 . . Swap 9 | . . . 2 7 Drop 10 | . 1 2 . 7 Fire 83 | 7 31 . 26 19 Melee . | . . . . . Ram . | . . . . . Kick 1 | . . . . 1 Crush . | . . . . . Escape Stasis . | . . . . . Rewire . | . . . . . Trap . | . . . . . Miscellaneous . | . . . . . Route ------- -11/Scrapyard -10/Materials -9/Materials -8/Materials -8/Storage History --------- Turn | Location | Event 7 | -11/Scrapyard | Discovered new exit (range 15) 93 | -11/Scrapyard | Entered Materials 262 | -10/Materials | Central database locked down 284 | -10/Materials | Core integrity fell below 50% 306 | -10/Materials | Build established: Mutant 336 | -10/Materials | Lost 4 parts (1p2n1w) 414 | -10/Materials | Discovered new exit (range 7) 422 | -10/Materials | Core integrity fell below 20% 436 | -10/Materials | Entered another Materials area 436 | -9/Materials | Evolved 2 slots: Propulsion x2 608 | -9/Materials | Discovered new exit (range 10) 613 | -9/Materials | Entered another Materials area 613 | -8/Materials | Evolved 2 slots: Power x1, Utility x1 620 | -8/Materials | Discovered new exit (range 14) 746 | -8/Materials | Core integrity fell below 50% 748 | -8/Materials | Lost 5 parts (1p3n1u) 828 | -8/Materials | Core integrity fell below 20% 862 | -8/Materials | Lost 5 parts (2p1n2w) 984 | -8/Materials | Entered Storage 1144 | -8/Storage | Repaired Broken Imp. Aluminum Leg 1167 | -8/Storage | Build established: Scavenger-Mutant 1268 | -8/Storage | Met 01-MTF 1352 | -8/Storage | Found Prototype Processor 1353 | -8/Storage | Identified Exp. Targeting Computer 1359 | -8/Storage | Destroyed by Y-45 Defender with Beam Rifle Last Messages --------------- 01318_ Y-45 Defender destroyed. 01325_ Y-45 Defender system terminally corrupted. 01327_ K-01 Serf collects debris. 01330_ Acquired 60 matter. 01332_ K-01 Serf collects debris. 01338_ Y-45 Defender destroyed. 01340_ K-01 Serf collects debris. 01346_ 01-MTF starts remote hacking door controls. 01347_ 01-MTF finishes hacking Sealed Heavy Doors. 01347_ K-01 Serf collects debris. 01348_ U-05 Engineer lays Concrete. 01352_ Acquired Prototype Processor. 01353_ Identified Exp. Targeting Computer. 01354_ K-01 Serf collects debris. 01356_ U-05 Engineer lays Concrete. 01358_ K-01 Serf collects debris. 01358_ U-05 Engineer lays Concrete. Map ----- +----------------------------------------------------+ | ????????????????????????????????????? | | ????????????????????????????????????? | | ????????????????????????????????????? | | ????????????????????????????????????? | | ????????????????????????????????????? | | ????????????????????????????????????? | | ????????????????????????????????????? | | ????????????????????????????????????? | | ?????????????????????######?????????? | | ????????????????????? #?????????? | | ????????????????????? #?????????? | | ????????????????????? [ ??????????? | | ????????????????????? =% ??????????? | | #???????????????????? ??????????? | | #????????????????????#Y #??????????? | | #????????????????????# #??????????? | | #?########???????????# #??????????? | | #?#] [[#???????????# #??????????? | | #?# ] ![#???????????# +??????????? | | #?#]] [ #???????????# #??????????? | | #?# #???????????# #??????????? | | #?###" "##??????????## #??????????? | | #??#T #??????????#; #??????????? | | ##?## ###???????##[% ####???????? | | #####+ # ########; [ #T###?????? | | [ @; p #?????? | | % uk* ! #####?????? | | [! u= #?????????? | | ##### ########### ] #?????????? | | ##???####"""#???????########????????? | | #??????##"Y"#####????#"""""#????????? | | #??????# #???##""T""####?????? | | #??????# """ #???# #?????? | | ######## "R" ##### ###???? | | + " " """## ""#???? | | ######## R"## T"#???? | | ?????# !! """ """## ""#???? | | ???# ! "" ##### """ """ ###???? | | #??# """%#???# """ """ #?????? | | #??# #???# """ """ #?????? | | #??#####+############+#########?? | | #?????# #?? | | #####?????# #?? | | ??????????# #?? | | ??????????#####/#########+##### #?? | | ???????????#! ## # #?? | | ???????????# ## # #?? | | ???????????# !## # #?? | | ???????????# ## # #?? | | ???????????# ## # #?? | +----------------------------------------------------+ Best States ------------- Heat Dissipation 45 Energy Generation 27 Energy Capacity 250 Matter Stores 300 Matter Capacity 300 Sight Range 18 Terrain Scan Density 10 ECM Strength 1 Armor Coverage 375 Evasion (%) 58 Recoil Reduction 2 Item Schematics ----------------- None Robot Schematics ------------------ None Fabricated ------------ Nothing Alien Tech Used ----------------- None Achievements -------------- None Challenges ------------ None Game ------ Seed AutogunFlyingSink Manual? 0 Play Time 00:14:42 Cumulative 44.7 hours Start 2025.03.19 @ 20:02:19 End 2025.04.28 @ 20:36:31 Sessions 3 Manual Loads 0 Difficulty Rogue Special Mode None Game No. 78 Rogue 78 Adventurer 0 Explorer 0 Win Type - Total 0 Types 0/0/0/0/0/0/0/0/0 Lore% 20 Gallery% 44 Achievement% 35 Wizard Run 0 Options --------- Layout 1 ASCII 0 Keyboard 0 Movement Mouse Keybinds 0 Fullscreen 2 Font 32/Smallcaps Map View 50x35 Zoom Use 0% Tactical HUD 1 Map Filters NONE Filters NONE Steam 1 RUN: a14b27db-d64e-43f2-b20c-ab342f020ed3